[Event "*** Titled Tuesday 3|2 Blitz"]
[Site "Chess.com"]
[Date "2016.09.06"]
[Round "5"]
[White "andretta"]
[Black "akinov-akinseye"]
[Result "1-0"]
[WhiteElo "2275"]
[BlackElo "2022"]
[TimeControl "180+2"]
[EndTime "17:59:49 PDT"]
[Termination "andretta won on time"]

1. d4 {[%clk 0:03:01.9]} 1... d5 {[%clk 0:03:00.9]} 2. Bf4 {[%clk 0:03:02.4]}
2... Nf6 {[%clk 0:03:01.6]} 3. e3 {[%clk 0:03:03.1]} 3... Bg4 {[%clk 0:03:02.2]}
4. Nf3 {[%clk 0:03:01.9]} 4... e6 {[%clk 0:03:01.9]} 5. Be2 {[%clk 0:03:02.9]}
5... Bd6 {[%clk 0:03:02.9]} 6. Bg3 {[%clk 0:03:04.4]} 6... O-O {[%clk
0:03:03.3]} 7. O-O {[%clk 0:03:05.4]} 7... Nc6 {[%clk 0:03:03.8]} 8. c4 {[%clk
0:03:06]} 8... Re8 {[%clk 0:02:58]} 9. Nc3 {[%clk 0:03:02.6]} 9... dxc4 {[%clk
0:02:50.6]} 10. Bxc4 {[%clk 0:03:02.9]} 10... e5 {[%clk 0:02:46.5]} 11. Qb3
{[%clk 0:02:39.6]} 11... Bh5 {[%clk 0:02:30.2]} 12. dxe5 {[%clk 0:02:18.4]}
12... Nxe5 {[%clk 0:02:15.9]} 13. Nxe5 {[%clk 0:02:16]} 13... Bxe5 {[%clk
0:02:16.9]} 14. Bxe5 {[%clk 0:02:00.4]} 14... Rxe5 {[%clk 0:02:17.4]} 15. Qxb7
{[%clk 0:02:02]} 15... Rb8 {[%clk 0:02:13.2]} 16. Qxa7 {[%clk 0:02:03]} 16...
Rxb2 {[%clk 0:02:14]} 17. Bb3 {[%clk 0:01:51.2]} 17... h6 {[%clk 0:02:02.6]} 18.
h3 {[%clk 0:01:50.7]} 18... Qd2 {[%clk 0:01:48.4]} 19. Qd4 {[%clk 0:01:49.6]}
19... Qxd4 {[%clk 0:01:39.1]} 20. exd4 {[%clk 0:01:51.5]} 20... Rg5 {[%clk
0:01:35.2]} 21. Bd1 {[%clk 0:01:35.6]} 21... Bg6 {[%clk 0:01:30.8]} 22. Bf3
{[%clk 0:01:31.8]} 22... Bf5 {[%clk 0:01:25.1]} 23. h4 {[%clk 0:01:29]} 23...
Rg6 {[%clk 0:01:22.9]} 24. a4 {[%clk 0:01:30.5]} 24... Rb6 {[%clk 0:01:07.9]}
25. a5 {[%clk 0:01:31.1]} 25... Ra6 {[%clk 0:01:09]} 26. Bb7 {[%clk 0:01:31.1]}
26... Ra7 {[%clk 0:01:07]} 27. a6 {[%clk 0:01:32.5]} 27... Bd3 {[%clk
0:01:04.8]} 28. Rfd1 {[%clk 0:01:29.6]} 28... Bc4 {[%clk 0:01:04.9]} 29. Rdb1
{[%clk 0:01:19.2]} 29... Nh5 {[%clk 0:00:59.5]} 30. Nb5 {[%clk 0:01:09.7]} 30...
Bxb5 {[%clk 0:00:53.7]} 31. Rxb5 {[%clk 0:01:11.6]} 31... Nf4 {[%clk 0:00:50.5]}
32. Rc5 {[%clk 0:00:56.4]} 32... Ne2+ {[%clk 0:00:22.4]} 33. Kf1 {[%clk
0:00:53.8]} 33... Nxd4 {[%clk 0:00:23.6]} 34. Rxc7 {[%clk 0:00:54]} 34... Ne6
{[%clk 0:00:19.4]} 35. Rc8+ {[%clk 0:00:53.7]} 35... Nf8 {[%clk 0:00:20.4]} 36.
Rd1 {[%clk 0:00:47.2]} 36... Rgxa6 {[%clk 0:00:08.3]} 37. Bxa6 {[%clk
0:00:47.4]} 37... Rxa6 {[%clk 0:00:09.4]} 38. Rdd8 {[%clk 0:00:49.1]} 38... Kh7
{[%clk 0:00:08.7]} 39. Rxf8 {[%clk 0:00:49.5]} 39... Rf6 {[%clk 0:00:09.4]} 40.
g3 {[%clk 0:00:50.2]} 40... Kg6 {[%clk 0:00:10.2]} 41. Kg2 {[%clk 0:00:51]}
41... h5 {[%clk 0:00:11.2]} 42. Rfd8 {[%clk 0:00:51.3]} 42... Ra6 {[%clk
0:00:11.8]} 43. Rd2 {[%clk 0:00:51.3]} 43... f6 {[%clk 0:00:12.1]} 44. Rc7
{[%clk 0:00:51.9]} 44... Kh6 {[%clk 0:00:09.2]} 45. Rdd7 {[%clk 0:00:52.4]}
45... Kg6 {[%clk 0:00:09.6]} 46. Rxg7+ {[%clk 0:00:52.3]} 46... Kf5 {[%clk
0:00:11.5]} 47. Rh7 {[%clk 0:00:52.8]} 47... Ke4 {[%clk 0:00:06.1]} 48. Rxh5
{[%clk 0:00:52.8]} 48... Re6 {[%clk 0:00:06.2]} 49. Rc4+ {[%clk 0:00:52.4]}
49... Kd3 {[%clk 0:00:06.8]} 50. Rf4 {[%clk 0:00:52.5]} 50... Kc3 {[%clk
0:00:06.6]} 51. Ra5 {[%clk 0:00:52.5]} 51... Kb3 {[%clk 0:00:06.8]} 52. Raf5
{[%clk 0:00:53.5]} 52... Kc3 {[%clk 0:00:06.6]} 53. Rxf6 {[%clk 0:00:52.8]}
53... Re1 {[%clk 0:00:08.5]} 54. Rf3+ {[%clk 0:00:48.2]} 54... Kd2 {[%clk
0:00:10.4]} 55. Rd6+ {[%clk 0:00:49.1]} 55... Kc2 {[%clk 0:00:11.4]} 56. Rf7
{[%clk 0:00:49.1]} 1-0

[Event "*** Titled Tuesday 3|2 Blitz"]
[Site "Chess.com"]
[Date "2016.09.06"]
[Round "5"]
[White "dretch"]
[Black "FairChess_on_YouTube"]
[Result "1-0"]
[WhiteElo "2639"]
[BlackElo "2687"]
[TimeControl "180+2"]
[EndTime "18:00:23 PDT"]
[Termination "dretch won by resignation"]

1. d4 {[%clk 0:03:01.9]} 1... g6 {[%clk 0:03:01.2]} 2. c4 {[%clk 0:03:02.7]}
2... Bg7 {[%clk 0:03:02.6]} 3. Nf3 {[%clk 0:03:03.1]} 3... Nf6 {[%clk
0:03:02.3]} 4. Nc3 {[%clk 0:03:02.2]} 4... O-O {[%clk 0:03:03.2]} 5. e4 {[%clk
0:03:03]} 5... d6 {[%clk 0:03:04.7]} 6. h3 {[%clk 0:03:04.1]} 6... Na6 {[%clk
0:03:03.4]} 7. Bg5 {[%clk 0:03:04.1]} 7... h6 {[%clk 0:03:03.1]} 8. Be3 {[%clk
0:03:04.5]} 8... c5 {[%clk 0:03:00.4]} 9. d5 {[%clk 0:02:59.2]} 9... Re8 {[%clk
0:02:57]} 10. Be2 {[%clk 0:02:54.6]} 10... e6 {[%clk 0:02:55]} 11. Nd2 {[%clk
0:02:55.5]} 11... Nc7 {[%clk 0:02:52.4]} 12. Qc2 {[%clk 0:02:31]} 12... Rb8
{[%clk 0:02:41]} 13. O-O {[%clk 0:02:23.9]} 13... exd5 {[%clk 0:02:41.3]} 14.
cxd5 {[%clk 0:02:24.9]} 14... b5 {[%clk 0:02:41.5]} 15. a4 {[%clk 0:02:25.6]}
15... b4 {[%clk 0:02:14.9]} 16. Nb5 {[%clk 0:02:26.3]} 16... a6 {[%clk
0:02:06.7]} 17. Nxc7 {[%clk 0:02:26.5]} 17... Qxc7 {[%clk 0:02:08.6]} 18. Rfe1
{[%clk 0:02:11.7]} 18... b3 {[%clk 0:02:01.2]} 19. Qb1 {[%clk 0:02:05.8]} 19...
Rb4 {[%clk 0:01:57.2]} 20. Bd3 {[%clk 0:01:58]} 20... a5 {[%clk 0:01:45.6]} 21.
Rc1 {[%clk 0:01:47.8]} 21... Bd7 {[%clk 0:01:30.2]} 22. Ra3 {[%clk 0:01:41.6]}
22... Bxa4 {[%clk 0:01:16.3]} 23. Qa1 {[%clk 0:01:42.7]} 23... Qd7 {[%clk
0:01:17.4]} 24. Rc4 {[%clk 0:01:33.4]} 24... Bb5 {[%clk 0:01:06.6]} 25. Rxb4
{[%clk 0:01:33.7]} 25... cxb4 {[%clk 0:01:02.6]} 26. Bxb5 {[%clk 0:01:33.6]}
26... Qxb5 {[%clk 0:01:04.5]} 27. Rxa5 {[%clk 0:01:34.8]} 27... Qd3 {[%clk
0:01:05.4]} 28. Qa4 {[%clk 0:01:23.3]} 28... Kh7 {[%clk 0:00:38.4]} 29. Ra7
{[%clk 0:01:24.2]} 29... Kg8 {[%clk 0:00:12.5]} 30. Rc7 {[%clk 0:01:01.3]} 30...
g5 {[%clk 0:00:11.2]} 31. Rc4 {[%clk 0:00:45.2]} 31... g4 {[%clk 0:00:09.1]} 32.
hxg4 {[%clk 0:00:28.8]} 32... Kh7 {[%clk 0:00:09.7]} 33. Rxb4 {[%clk 0:00:24.4]}
33... Rc8 {[%clk 0:00:07.5]} 34. Rc4 {[%clk 0:00:21.7]} 34... Rxc4 {[%clk
0:00:05.4]} 35. Qxc4 {[%clk 0:00:22.6]} 35... Qc2 {[%clk 0:00:03.2]} 36. Qxb3
{[%clk 0:00:19.8]} 36... Qc1+ {[%clk 0:00:03.3]} 37. Nf1 {[%clk 0:00:19.1]}
37... Qb1 {[%clk 0:00:04.4]} 38. f3 {[%clk 0:00:19.2]} 38... h5 {[%clk
0:00:04.8]} 39. gxh5 {[%clk 0:00:17.3]} 39... Nxh5 {[%clk 0:00:06.7]} 40. Qb6
{[%clk 0:00:12.3]} 40... Be5 {[%clk 0:00:07]} 41. Qc7 {[%clk 0:00:11.4]} 41...
Kg7 {[%clk 0:00:07]} 42. Qc1 {[%clk 0:00:11.8]} 42... Qd3 {[%clk 0:00:07.3]} 43.
Qd2 {[%clk 0:00:11.9]} 43... Qb1 {[%clk 0:00:08.2]} 44. Bd4 {[%clk 0:00:12.3]}
44... Nf4 {[%clk 0:00:06.7]} 45. Bxe5+ {[%clk 0:00:13.3]} 45... dxe5 {[%clk
0:00:08.1]} 46. g3 {[%clk 0:00:14.6]} 46... Nd3 {[%clk 0:00:08.5]} 47. d6 {[%clk
0:00:12.7]} 47... Ne1 {[%clk 0:00:07.4]} 48. Kf2 {[%clk 0:00:07.1]} 48... Nd3+
{[%clk 0:00:07.8]} 49. Kg2 {[%clk 0:00:05.1]} 49... Ne1+ {[%clk 0:00:09]} 50.
Kf2 {[%clk 0:00:05.2]} 50... Nd3+ {[%clk 0:00:10.2]} 51. Kg1 {[%clk 0:00:05.9]}
51... Ne1 {[%clk 0:00:11.4]} 52. Qg5+ {[%clk 0:00:06.4]} 52... Kh7 {[%clk
0:00:12.2]} 53. Qf5+ {[%clk 0:00:06.2]} 53... Kg8 {[%clk 0:00:13.4]} 54. d7
{[%clk 0:00:06.7]} 54... Qd3 {[%clk 0:00:13]} 55. Qg5+ {[%clk 0:00:04.6]} 55...
Kh7 {[%clk 0:00:14.6]} 56. Qh5+ {[%clk 0:00:06.2]} 56... Kg7 {[%clk 0:00:15.4]}
57. Qg5+ {[%clk 0:00:07.1]} 57... Kh7 {[%clk 0:00:17]} 58. Qh4+ {[%clk
0:00:07.3]} 58... Kg6 {[%clk 0:00:17]} 59. Qg4+ {[%clk 0:00:08]} 59... Kf6
{[%clk 0:00:17.2]} 60. Kf2 {[%clk 0:00:07.9]} 60... Ke7 {[%clk 0:00:10.8]} 61.
Kxe1 {[%clk 0:00:08.1]} 61... Qc2 {[%clk 0:00:12.1]} 62. Qg5+ {[%clk 0:00:08.2]}
1-0

[Event "*** Titled Tuesday 3|2 Blitz"]
[Site "Chess.com"]
[Date "2016.09.06"]
[Round "5"]
[White "papapizza_old"]
[Black "matein28"]
[Result "1-0"]
[WhiteElo "2257"]
[BlackElo "2311"]
[TimeControl "180+2"]
[EndTime "18:00:33 PDT"]
[Termination "papapizza_old won on time"]

1. d4 {[%clk 0:03:01.9]} 1... d5 {[%clk 0:03:00.2]} 2. Nf3 {[%clk 0:03:01.3]}
2... Nf6 {[%clk 0:03:00.3]} 3. c4 {[%clk 0:03:01.9]} 3... c6 {[%clk 0:03:00.7]}
4. e3 {[%clk 0:03:02.4]} 4... Bf5 {[%clk 0:03:01.3]} 5. Nc3 {[%clk 0:03:02.8]}
5... e6 {[%clk 0:03:02.1]} 6. Nh4 {[%clk 0:03:03.8]} 6... Bg6 {[%clk 0:03:02]}
7. Nxg6 {[%clk 0:02:50.2]} 7... hxg6 {[%clk 0:03:03.9]} 8. Bd2 {[%clk
0:02:51.2]} 8... Nbd7 {[%clk 0:03:02.2]} 9. Qb3 {[%clk 0:02:43.6]} 9... Qb6
{[%clk 0:03:01.6]} 10. Be2 {[%clk 0:02:32.9]} 10... Be7 {[%clk 0:02:59.4]} 11.
Qc2 {[%clk 0:02:27.1]} 11... Rc8 {[%clk 0:02:56.9]} 12. c5 {[%clk 0:02:22.2]}
12... Qc7 {[%clk 0:02:56.6]} 13. f4 {[%clk 0:02:19.4]} 13... Nh5 {[%clk
0:02:43.7]} 14. O-O {[%clk 0:01:57.7]} 14... f5 {[%clk 0:02:38.6]} 15. b4 {[%clk
0:01:44.4]} 15... g5 {[%clk 0:02:38.9]} 16. b5 {[%clk 0:01:36.7]} 16... gxf4
{[%clk 0:02:34.1]} 17. exf4 {[%clk 0:01:37.8]} 17... g5 {[%clk 0:02:34.4]} 18.
fxg5 {[%clk 0:01:32.1]} 18... Nxc5 {[%clk 0:02:07]} 19. Qd1 {[%clk 0:01:17.9]}
19... Ng7 {[%clk 0:01:58.3]} 20. Bf4 {[%clk 0:01:18.4]} 20... Bd6 {[%clk
0:01:57.2]} 21. g3 {[%clk 0:01:05.9]} 21... Ne4 {[%clk 0:01:50.5]} 22. Nxe4
{[%clk 0:01:04.8]} 22... dxe4 {[%clk 0:01:44.2]} 23. Rc1 {[%clk 0:01:03]} 23...
Bxf4 {[%clk 0:01:42.8]} 24. gxf4 {[%clk 0:00:57.7]} 24... Qd6 {[%clk 0:01:41.6]}
25. bxc6 {[%clk 0:00:57.9]} 25... bxc6 {[%clk 0:01:42.2]} 26. Qa4 {[%clk
0:00:53.7]} 26... Rh4 {[%clk 0:01:29.2]} 27. Bb5 {[%clk 0:00:42.6]} 27... Rxf4
{[%clk 0:01:22.7]} 28. Bxc6+ {[%clk 0:00:42.3]} 28... Kf8 {[%clk 0:01:23.2]} 29.
Qa6 {[%clk 0:00:26.5]} 29... Qxd4+ {[%clk 0:00:52.8]} 30. Kh1 {[%clk 0:00:22.3]}
30... Rxf1+ {[%clk 0:00:52.9]} 31. Qxf1 {[%clk 0:00:12.9]} 31... Qd2 {[%clk
0:00:39.7]} 32. Rd1 {[%clk 0:00:11.8]} 32... Qxg5 {[%clk 0:00:37.2]} 33. Bxe4
{[%clk 0:00:12]} 33... Nh5 {[%clk 0:00:22.4]} 34. Bb7 {[%clk 0:00:07.8]} 34...
Rc2 {[%clk 0:00:18.5]} 35. Qd3 {[%clk 0:00:08]} 35... Rc7 {[%clk 0:00:14.2]} 36.
Bf3 {[%clk 0:00:05.3]} 36... Nf4 {[%clk 0:00:13.7]} 37. Qd6+ {[%clk 0:00:06]}
37... Qe7 {[%clk 0:00:14.7]} 38. Qxf4 {[%clk 0:00:06.8]} 38... Rd7 {[%clk
0:00:12.4]} 39. Qh6+ {[%clk 0:00:07.7]} 39... Qg7 {[%clk 0:00:11.6]} 40. Qc1
{[%clk 0:00:08]} 40... Rxd1+ {[%clk 0:00:11.3]} 41. Qxd1 {[%clk 0:00:09.9]}
41... Qe5 {[%clk 0:00:12.4]} 42. Qd8+ {[%clk 0:00:10.3]} 42... Kg7 {[%clk
0:00:13.8]} 43. Qg5+ {[%clk 0:00:10.3]} 43... Kf8 {[%clk 0:00:14.5]} 44. Qd2
{[%clk 0:00:10.6]} 44... Qf6 {[%clk 0:00:12.8]} 45. Kg2 {[%clk 0:00:11]} 45...
e5 {[%clk 0:00:14.1]} 46. Qb4+ {[%clk 0:00:08.4]} 46... Kg7 {[%clk 0:00:13.1]}
47. Qb7+ {[%clk 0:00:09.1]} 47... Kg6 {[%clk 0:00:14.8]} 48. Qxa7 {[%clk
0:00:08.1]} 48... e4 {[%clk 0:00:16.2]} 49. Be2 {[%clk 0:00:08.9]} 49... Qg5+
{[%clk 0:00:17.2]} 50. Kf1 {[%clk 0:00:09.8]} 50... Qc1+ {[%clk 0:00:17.8]} 51.
Kf2 {[%clk 0:00:10.7]} 51... Qf4+ {[%clk 0:00:19.1]} 52. Kg1 {[%clk 0:00:10]}
52... Qg5+ {[%clk 0:00:19.7]} 53. Kh1 {[%clk 0:00:08.8]} 53... Qd2 {[%clk
0:00:19.9]} 54. Qg1+ {[%clk 0:00:08.8]} 54... Kf6 {[%clk 0:00:21.4]} 55. Qf1
{[%clk 0:00:09.1]} 55... Qe3 {[%clk 0:00:22.1]} 56. Kg2 {[%clk 0:00:07.5]} 56...
f4 {[%clk 0:00:22.4]} 57. Bg4 {[%clk 0:00:06.2]} 57... Kg5 {[%clk 0:00:23.1]}
58. h3 {[%clk 0:00:06.8]} 58... Qg3+ {[%clk 0:00:19.7]} 59. Kh1 {[%clk
0:00:07.9]} 59... f3 {[%clk 0:00:21.1]} 60. Qg1 {[%clk 0:00:08.9]} 60... Kf4
{[%clk 0:00:17]} 61. Qxg3+ {[%clk 0:00:09.4]} 61... Kxg3 {[%clk 0:00:18.6]} 62.
Kg1 {[%clk 0:00:10.5]} 62... e3 {[%clk 0:00:08.6]} 63. Bxf3 {[%clk 0:00:10.7]}
63... Kxf3 {[%clk 0:00:10.4]} 64. Kf1 {[%clk 0:00:11.8]} 64... Kg3 {[%clk
0:00:12]} 65. a4 {[%clk 0:00:12.7]} 65... Kxh3 {[%clk 0:00:13.9]} 66. a5 {[%clk
0:00:14]} 1-0

[Event "*** Titled Tuesday 3|2 Blitz"]
[Site "Chess.com"]
[Date "2016.09.06"]
[Round "5"]
[White "gmjoey1"]
[Black "Lapitch"]
[Result "0-1"]
[WhiteElo "2515"]
[BlackElo "2593"]
[TimeControl "180+2"]
[EndTime "18:00:36 PDT"]
[Termination "Lapitch won by resignation"]

1. e4 {[%clk 0:03:01.9]} 1... c5 {[%clk 0:02:58.4]} 2. c3 {[%clk 0:03:01.7]}
2... d5 {[%clk 0:02:52.3]} 3. exd5 {[%clk 0:03:02.5]} 3... Qxd5 {[%clk
0:02:54.2]} 4. Na3 {[%clk 0:03:03.3]} 4... Nc6 {[%clk 0:02:43.9]} 5. d4 {[%clk
0:02:59.7]} 5... Bf5 {[%clk 0:02:33.5]} 6. Nf3 {[%clk 0:02:44.9]} 6... cxd4
{[%clk 0:02:33.6]} 7. Bc4 {[%clk 0:01:58.4]} 7... Qe4+ {[%clk 0:02:29.5]} 8. Kf1
{[%clk 0:01:58.6]} 8... e6 {[%clk 0:02:23.4]} 9. Nb5 {[%clk 0:01:45.4]} 9... Rc8
{[%clk 0:02:12.7]} 10. Qa4 {[%clk 0:01:27.5]} 10... d3 {[%clk 0:01:53.3]} 11.
Nbd4 {[%clk 0:01:14.5]} 11... Bc5 {[%clk 0:01:41.6]} 12. Be3 {[%clk 0:01:01.5]}
12... Bxd4 {[%clk 0:01:27.6]} 13. Nxd4 {[%clk 0:01:01.1]} 13... Ne7 {[%clk
0:01:25]} 14. Re1 {[%clk 0:00:56.6]} 14... O-O {[%clk 0:01:21.9]} 15. Bd2 {[%clk
0:00:48.9]} 15... Qh4 {[%clk 0:01:11.7]} 16. Nf3 {[%clk 0:00:42.5]} 16... Qh5
{[%clk 0:01:06.3]} 17. Bb3 {[%clk 0:00:43]} 17... Bg6 {[%clk 0:00:54.9]} 18. h3
{[%clk 0:00:38.1]} 18... Rfd8 {[%clk 0:00:52.9]} 19. Qf4 {[%clk 0:00:32.2]}
19... Nd5 {[%clk 0:00:50.1]} 20. Qg3 {[%clk 0:00:31.9]} 20... Nf6 {[%clk
0:00:49.7]} 21. Ng5 {[%clk 0:00:32.3]} 21... Bf5 {[%clk 0:00:28.3]} 22. Bd1
{[%clk 0:00:32.2]} 22... Qg6 {[%clk 0:00:29.5]} 23. h4 {[%clk 0:00:33.2]} 23...
h5 {[%clk 0:00:28.6]} 24. Qe3 {[%clk 0:00:24.2]} 24... Ng4 {[%clk 0:00:27.2]}
25. Qg3 {[%clk 0:00:24]} 25... b5 {[%clk 0:00:25.9]} 26. f3 {[%clk 0:00:22.4]}
26... Nf6 {[%clk 0:00:26.4]} 27. Kf2 {[%clk 0:00:24]} 27... Na5 {[%clk
0:00:26.2]} 28. b3 {[%clk 0:00:22.8]} 28... Nc6 {[%clk 0:00:27.1]} 29. Qf4
{[%clk 0:00:23.6]} 29... Nd5 {[%clk 0:00:27.8]} 30. Qg3 {[%clk 0:00:24.7]} 30...
b4 {[%clk 0:00:27.9]} 31. c4 {[%clk 0:00:19.2]} 31... Nc3 {[%clk 0:00:29]} 32.
Qf4 {[%clk 0:00:17.8]} 32... e5 {[%clk 0:00:27.3]} 33. Qg3 {[%clk 0:00:18.7]}
33... f6 {[%clk 0:00:28]} 34. Ne4 {[%clk 0:00:18.8]} 34... Bxe4 {[%clk
0:00:26.7]} 35. fxe4 {[%clk 0:00:18.1]} 35... Nxe4+ {[%clk 0:00:26.3]} 36. Rxe4
{[%clk 0:00:17.4]} 36... Qxe4 {[%clk 0:00:28.2]} 37. Rf1 {[%clk 0:00:13.6]}
37... Nd4 {[%clk 0:00:26]} 38. Re1 {[%clk 0:00:08.7]} 38... Ne2 {[%clk
0:00:20.7]} 39. Bxe2 {[%clk 0:00:08.4]} 39... dxe2 {[%clk 0:00:22.6]} 40. Rxe2
{[%clk 0:00:10.2]} 40... Qg4 {[%clk 0:00:24.1]} 41. Qe3 {[%clk 0:00:09.6]} 41...
a5 {[%clk 0:00:22.6]} 42. Kg1 {[%clk 0:00:11.5]} 42... Rd4 {[%clk 0:00:23.3]}
43. Be1 {[%clk 0:00:11.9]} 43... Rcd8 {[%clk 0:00:24.1]} 44. Kh2 {[%clk
0:00:12]} 44... Qf4+ {[%clk 0:00:22.4]} 45. Qxf4 {[%clk 0:00:12.3]} 45... Rxf4
{[%clk 0:00:24.3]} 46. Bf2 {[%clk 0:00:12.4]} 46... Rd6 {[%clk 0:00:21.2]} 47.
g3 {[%clk 0:00:13.2]} 47... Rf3 {[%clk 0:00:21.5]} 48. Be1 {[%clk 0:00:14.6]}
48... Rfd3 {[%clk 0:00:21.7]} 49. Rc2 {[%clk 0:00:15]} 49... Kf7 {[%clk
0:00:22.4]} 50. Kg2 {[%clk 0:00:15.3]} 50... Rd1 {[%clk 0:00:23.3]} 51. c5
{[%clk 0:00:16.9]} 51... Rc6 {[%clk 0:00:23.7]} 52. Bf2 {[%clk 0:00:17.5]} 52...
Rd3 {[%clk 0:00:23.9]} 53. Re2 {[%clk 0:00:16.1]} 53... Ke6 {[%clk 0:00:25.1]}
54. Rc2 {[%clk 0:00:17]} 54... Kd5 {[%clk 0:00:25.8]} 55. Rc4 {[%clk 0:00:17.6]}
55... f5 {[%clk 0:00:26]} 56. Rc2 {[%clk 0:00:16.4]} 56... g6 {[%clk 0:00:27.4]}
57. Rc4 {[%clk 0:00:15.1]} 57... e4 {[%clk 0:00:28.7]} 58. Kf1 {[%clk
0:00:16.8]} 58... e3 {[%clk 0:00:28.8]} 59. Be1 {[%clk 0:00:15.8]} 59... Rxc5
{[%clk 0:00:29.9]} 60. Rxc5+ {[%clk 0:00:14.6]} 60... Kxc5 {[%clk 0:00:30.9]}
61. Ke2 {[%clk 0:00:16.5]} 61... Kd4 {[%clk 0:00:32.5]} 62. g4 {[%clk
0:00:14.6]} 62... hxg4 {[%clk 0:00:32.4]} 63. a4 {[%clk 0:00:12.7]} 63... Rxb3
{[%clk 0:00:33.2]} 64. Bg3 {[%clk 0:00:11.9]} 64... Rb2+ {[%clk 0:00:32.6]} 65.
Kd1 {[%clk 0:00:13.8]} 65... Kd3 {[%clk 0:00:33.5]} 66. Kc1 {[%clk 0:00:14.5]}
66... Rc2+ {[%clk 0:00:34.8]} 67. Kb1 {[%clk 0:00:14.6]} 67... Rg2 {[%clk
0:00:36.4]} 68. h5 {[%clk 0:00:12.2]} 68... Rxg3 {[%clk 0:00:35.8]} 0-1

[Event "*** Titled Tuesday 3|2 Blitz"]
[Site "Chess.com"]
[Date "2016.09.06"]
[Round "6"]
[White "Rating-Schmating"]
[Black "beastfromweast"]
[Result "1-0"]
[WhiteElo "2219"]
[BlackElo "2277"]
[TimeControl "180+2"]
[EndTime "18:03:42 PDT"]
[Termination "Rating-Schmating won by resignation"]

1. e4 {[%clk 0:03:01.9]} 1... c5 {[%clk 0:03:00.2]} 2. Nf3 {[%clk 0:03:02]} 2...
d6 {[%clk 0:03:01.6]} 3. d4 {[%clk 0:03:03.1]} 3... cxd4 {[%clk 0:03:03.5]} 4.
Nxd4 {[%clk 0:03:04.4]} 4... Nf6 {[%clk 0:03:03.7]} 5. Nc3 {[%clk 0:03:05.8]}
5... a6 {[%clk 0:03:05.3]} 6. h3 {[%clk 0:03:07.2]} 6... g6 {[%clk 0:03:06]} 7.
g4 {[%clk 0:03:07.5]} 7... Bg7 {[%clk 0:03:07.6]} 8. Bg2 {[%clk 0:03:04.9]} 8...
O-O {[%clk 0:03:07.9]} 9. Be3 {[%clk 0:03:05.1]} 9... Bd7 {[%clk 0:03:03.2]} 10.
a4 {[%clk 0:03:05.8]} 10... Nc6 {[%clk 0:03:03.4]} 11. Nde2 {[%clk 0:03:06.6]}
11... Rc8 {[%clk 0:02:47.5]} 12. Qd2 {[%clk 0:03:07.4]} 12... Nb4 {[%clk
0:02:46.6]} 13. Ng3 {[%clk 0:03:03.1]} 13... Qa5 {[%clk 0:02:46.1]} 14. O-O
{[%clk 0:03:03.1]} 14... Rfd8 {[%clk 0:02:40.3]} 15. Rfd1 {[%clk 0:03:00.2]}
15... Nc6 {[%clk 0:02:29.6]} 16. Nd5 {[%clk 0:02:56]} 16... Qxd2 {[%clk
0:02:27.4]} 17. Rxd2 {[%clk 0:02:56.6]} 17... Nxd5 {[%clk 0:02:28.6]} 18. exd5
{[%clk 0:02:57.3]} 18... Ne5 {[%clk 0:02:30]} 19. c3 {[%clk 0:02:44.2]} 19...
Nc4 {[%clk 0:02:29.2]} 20. Re2 {[%clk 0:02:45.6]} 20... Nxb2 {[%clk 0:02:25.4]}
21. Rxb2 {[%clk 0:02:42.9]} 21... Bxc3 {[%clk 0:02:26.3]} 22. Rba2 {[%clk
0:02:42.9]} 22... Bxa1 {[%clk 0:02:26.9]} 23. Rxa1 {[%clk 0:02:44.8]} 23... Rc4
{[%clk 0:02:24]} 24. a5 {[%clk 0:02:43.3]} 24... Rdc8 {[%clk 0:02:24.8]} 25. Bf1
{[%clk 0:02:42]} 25... Rc1 {[%clk 0:02:25.5]} 26. Rxc1 {[%clk 0:02:42.3]} 26...
Rxc1 {[%clk 0:02:26.1]} 27. Bxc1 {[%clk 0:02:43.3]} 1-0

[Event "*** Titled Tuesday 3|2 Blitz"]
[Site "Chess.com"]
[Date "2016.09.06"]
[Round "6"]
[White "dusanacns"]
[Black "GianmarcoVaR"]
[Result "1-0"]
[WhiteElo "2552"]
[BlackElo "2417"]
[TimeControl "180+2"]
[EndTime "18:05:00 PDT"]
[Termination "dusanacns won by resignation"]

1. e4 {[%clk 0:03:01.9]} 1... c6 {[%clk 0:03:00.8]} 2. d4 {[%clk 0:03:02.6]}
2... d5 {[%clk 0:03:02.4]} 3. e5 {[%clk 0:03:04.2]} 3... Bf5 {[%clk 0:03:03.1]}
4. c4 {[%clk 0:03:05.8]} 4... e6 {[%clk 0:03:03.9]} 5. Nc3 {[%clk 0:03:06.9]}
5... Nd7 {[%clk 0:03:01.8]} 6. a3 {[%clk 0:03:08.3]} 6... dxc4 {[%clk
0:03:01.4]} 7. Bxc4 {[%clk 0:03:09.1]} 7... Ne7 {[%clk 0:03:02.8]} 8. Nge2
{[%clk 0:03:08.3]} 8... h6 {[%clk 0:03:02.8]} 9. Ng3 {[%clk 0:03:01.6]} 9... Nb6
{[%clk 0:03:02.8]} 10. Bb3 {[%clk 0:03:01.8]} 10... Bg6 {[%clk 0:03:03.6]} 11.
O-O {[%clk 0:02:50.9]} 11... Nf5 {[%clk 0:03:03.5]} 12. Nxf5 {[%clk 0:02:51.8]}
12... Bxf5 {[%clk 0:03:04.8]} 13. Be3 {[%clk 0:02:53.5]} 13... Be7 {[%clk
0:03:05.5]} 14. Qe2 {[%clk 0:02:54.8]} 14... a5 {[%clk 0:03:03.9]} 15. Rfd1
{[%clk 0:02:52.7]} 15... a4 {[%clk 0:03:03.5]} 16. Ba2 {[%clk 0:02:54.1]} 16...
O-O {[%clk 0:03:00.7]} 17. Rac1 {[%clk 0:02:54.9]} 17... Qb8 {[%clk 0:02:51.1]}
18. Qf3 {[%clk 0:02:54.2]} 18... Qa7 {[%clk 0:02:44.3]} 19. d5 {[%clk
0:02:47.8]} 19... cxd5 {[%clk 0:02:45.5]} 20. Nxd5 {[%clk 0:02:41.1]} 20... Bd8
{[%clk 0:02:43.9]} 21. Bxb6 {[%clk 0:02:24.3]} 21... Bxb6 {[%clk 0:02:44.9]} 22.
Ne7+ {[%clk 0:02:25.9]} 22... Kh8 {[%clk 0:02:45.7]} 23. Nxf5 {[%clk 0:02:27.5]}
23... exf5 {[%clk 0:02:46.2]} 24. Qxf5 {[%clk 0:02:29.1]} 24... Bc5 {[%clk
0:02:42.4]} 25. Bb1 {[%clk 0:02:28.7]} 25... g6 {[%clk 0:02:41.4]} 26. Qf6+
{[%clk 0:02:30.1]} 26... Kg8 {[%clk 0:02:34.9]} 27. e6 {[%clk 0:02:30]} 27...
Qb6 {[%clk 0:02:28.7]} 28. Bxg6 {[%clk 0:02:02.9]} 28... fxe6 {[%clk 0:02:16.9]}
29. Bh7+ {[%clk 0:02:03.4]} 1-0